Cogmind - Beta 13 @@@ ROGUE MODE // 2024.04.03 @ 17:25:29 Player: nixie Result: Destroyed by S-10 Pest with Light Assault Rifle Performance ------------- Evolutions (1) 500 Regions Visited (4) 800 Robots Destroyed (20) 100 Value Destroyed (560) 560 Prototype IDs (4) 80 Alien Tech Used (0) 0 Bonus (0) 0 TOTAL SCORE: 2040 Bonus ------- None Cogmind --------- Core Integrity 0/400 Matter 133/300 Energy 100/100 System Corruption 5% Temperature Cool (0) Movement Core (50) Location -9/Mines Parts ------- > --- POWER (2) -------- (None) > --- PROPULSION (2) --- (None) > --- UTILITY (3) ------ Weight Redist. System Visual Processing Unit > --- WEAPON (2) ------- (None) > --- INVENTORY (5) ---- Aluminum Leg Signal Interpreter Improved Terrain Scanner Seismic Detector Field Recycling Unit (0) Peak State ------------ > --- POWER ------------ Ion Engine Light Ion Engine > --- PROPULSION ------- Light Treads Light Treads > --- UTILITY ---------- Small Storage Unit Medium Matter Pod Sensor Array > --- WEAPON ----------- Improved Light Cannon Grenade Launcher > --- INVENTORY -------- Weight Redist. System Weight Redist. System Weight Redist. System Weight Redist. System Visual Processing Unit Signal Interpreter [Rating: 11] Favorites ----------- Power Light Ion Engine Engine Light Ion Engine Propulsion Light Treads Treads Light Treads Utility Small Storage Unit Device Sensor Array Storage Small Storage Unit Processor Visual Processing Unit Weapon Grenade Launcher Energy Gun Small Laser Ballistic Gun Assault Rifle Ballistic Cannon Improved Light Cannon Launcher Grenade Launcher Build | -11 -10 -10 -9 -9 ------- Run | Yrd Mat Min Mat Min Slots Evolved 2 | . . . 2 . Power 1 | . . . 1 . Propulsion . | . . . . . Utility 1 | . . . 1 . Weapon . | . . . . . Parts Attached 25 | 10 4 1 8 2 Power 7 | 5 . . 2 . Engine 7 | 5 . . 2 . Core . | . . . . . Reactor . | . . . . . Propulsion 4 | 2 . 1 1 . Treads 4 | 2 . 1 1 . Leg . | . . . . . Wheel . | . . . . . Hover . | . . . . . Flight . | . . . . . Utility 8 | 1 1 . 4 2 Device 4 | . 1 . 2 1 Storage 3 | 1 . . 2 . Processor 1 | . . . . 1 Hackware . | . . . . . Protection . | . . . . . Artifact . | . . . . . Weapon 6 | 2 3 . 1 . Energy Gun 1 | 1 . . . . Energy Cannon . | . . . . . Ballistic Gun 3 | 1 2 . . . Ballistic Cannon 1 | . . . 1 . Launcher 1 | . 1 . . . Special Weapon . | . . . . . Impact Weapon . | . . . . . Slashing Weapon . | . . . . . Piercing Weapon . | . . . . . Special Melee Weapon . | . . . . . Unidentified Prototypes . | . . . . . Parts Lost 10 | . . . 9 1 Power 2 | . . . 2 . Propulsion 3 | . . . 3 . Utility 3 | . . . 2 1 Weapon 2 | . . . 2 . Highest Loss Streak 5 | . . . 5 1 To Critical Strikes 1 | . . . 1 . Average Slot Usage (%) 86 | . 97 100 78 31 Engine 12 | . 14 14 13 . Treads 22 | . 28 28 19 . Device 11 | . 11 14 10 11 Storage 14 | . 14 14 17 9 Energy Gun 2 | . 6 . . . Ballistic Gun 8 | . 15 14 . . Ballistic Cannon 3 | . . . 9 . Launcher 8 | . 6 14 7 . Naked Turns . | . . . . . Heaviest Build 26 | 13 14 14 26 5 Greatest Support 46 | 40 40 40 46 9 Greatest Overweight (x) 2 | . . . 2 1 Average Overweight (x) . | . . . . . Largest Inventory Capacity 8 | 8 8 8 8 8 Average Capacity 7 | 7 8 8 8 7 Most Carried 8 | 4 8 8 6 7 Average Carried 3 | 1 2 7 2 4 Final Capacity 8 | 8 8 8 8 5 Final Carried 8 | 1 8 5 4 5 Class Distribution -------------------- 100% | Mutant Dominant Class ---------------- Mutant | -10/Materials Mutant | -10/Mines Mutant | -9/Materials Mutant | -9/Mines Resources | -11 -10 -10 -9 -9 ----------- Run | Yrd Mat Min Mat Min Matter Collected 538 | 253 133 37 55 60 Remotely . | . . . . . Salvage Created 438 | . 216 44 148 30 Parts 30 | . 16 1 10 3 Haulers Intercepted 1 | . 1 . . . Recyclers Shooed 1 | . . . . 1 Parts Field Recycled . | . . . . . Retrieved Matter . | . . . . . Parts Self-Destructed . | . . . . . Prevented . | . . . . . Kills | -11 -10 -10 -9 -9 ------- Run | Yrd Mat Min Mat Min Combat Hostiles Destroyed 16 | . 6 2 8 . Guns 7 | . 6 1 . . Cannons 5 | . . . 5 . AOE 4 | . . 1 3 . Classes Destroyed 8 | . 4 . 3 1 Builder 1 | . . . 1 . Tunneler 1 | . . . . 1 Hauler 1 | . 1 . . . Watcher 1 | . 1 . . . Swarmer 3 | . 3 . . . Grunt 11 | . 3 2 6 . Brawler 1 | . . . 1 . Duelist 1 | . . . 1 . Best Kill Streak 5 | . 4 1 5 1 Combat Bots Only 4 | . 3 1 4 . Max Kills in Single Turn 2 | . 2 1 1 1 Gunslinging 1 | . 1 . . . Exploded 1 | . . 1 1 . Melee . | . . . . . Uniques/NPCs Destroyed . | . . . . . Combat | -11 -10 -10 -9 -9 -------- Run | Yrd Mat Min Mat Min Hostile Shots Fired 165 | . 17 12 103 33 Missed 53 | . 9 4 27 13 Damage Taken 1462 | . 76 111 1085 190 Core 407 | . 6 . 274 127 Absorbed by Shields . | . . . . . Core Remaining (%) 98 | 100 . 97 . . Volleys Fired 45 | . 18 9 18 . Largest 2 | . 2 2 2 . Hottest 69 | . 60 50 69 . Shots Fired 72 | . 23 17 32 . Gun 30 | . 21 9 . . Cannon 18 | . . . 18 . Launcher 24 | . 2 8 14 . Special . | . . . . . Kinetic 45 | . 18 9 18 . Thermal 3 | . 3 . . . Explosive 24 | . 2 8 14 . Electromagnetic . | . . . . . Robot Hit Streak 11 | . 11 3 6 . Robot Miss Streak 4 | . 3 4 4 . Penetration Max . | . . . . . Secondary Targets 1 | . 1 . . . Max Gunslinging Chain 1 | . 1 . . . Shots Hit Robots 41 | . 14 8 19 . Core Hits 47 | . 14 5 22 6 Critical Kills . | . . . . . Critical Parts Destroyed . | . . . . . Critical Strikes 1 | . . . 1 . Blast 1 | . . . 1 . Melee Attacks . | . . . . . Impact . | . . . . . Slashing . | . . . . . Piercing . | . . . . . Sneak Attacks . | . . . . . Combat Hostiles . | . . . . . Follow-up Attacks . | . . . . . Damage Inflicted 1145 | . 239 181 672 53 Guns 205 | . 138 67 . . Cannons 204 | . . . 204 . Explosions 670 | . 101 114 455 . Melee . | . . . . . Ramming 66 | . . . 13 53 Kinetic 376 | . 105 67 204 . Thermal 33 | . 33 . . . Explosive 670 | . 101 114 455 . Electromagnetic . | . . . . . Impact . | . . . . . Slashing . | . . . . . Piercing . | . . . . . Highest Corruption 5 | . . . 5 5 Average Corruption 2 | . . . 1 5 Corruption Purged . | . . . . . Corruption Blocked . | . . . . . Effects 6 | . . . 2 4 Energy Discharges 2 | . . . 1 1 Data Loss (minor) 2 | . . . . 2 Data Loss (major) 1 | . . . . 1 Alerts 1 | . . . 1 . Overload Shots . | . . . . . Overflow Damage 29 | . 8 . 21 . Projectiles . | . . . . . Explosions 29 | . 8 . 21 . Melee . | . . . . . Knockbacks 1 | . . . 1 . Impact . | . . . . . Kinetic 1 | . . . 1 . Secondary . | . . . . . Self-Inflicted Damage 168 | . . . 144 24 Shots 4 | . . . 4 . Rammed 17 | . . . 7 10 Targets Rammed 17 | . . . 7 10 Kicked . | . . . . . Crushed . | . . . . . Highest Temperature 51 | . 10 19 51 . Average Temperature 14 | . 6 9 25 . Received Heat Transfer 507 | . 30 78 399 . Siege Activations . | . . . . . Robots Corrupted . | . . . . . Combat Hostiles . | . . . . . Parts Fried . | . . . . . Impact Corruptions . | . . . . . Robots Melted . | . . . . . Combat Hostiles . | . . . . . Parts Melted . | . . . . . Heat Transferred 75 | . 75 . . . Parts Sabotaged . | . . . . . Parts Stolen . | . . . . . Parts Stripped . | . . . . . Power Chain Reactions . | . . . . . Alert | -11 -10 -10 -9 -9 ------- Run | Yrd Mat Min Mat Min Peak Influence 351 | . 195 196 351 134 Initial 124 | . . 75 76 124 Average 140 | . 83 175 210 126 Maximum Alert Level 1 | . . . 1 . Low Security (%) 85 | 100 100 100 53 100 Level 1 14 | . . . 46 . Level 2 . | . . . . . Level 3 . | . . . . . Level 4 . | . . . . . Level 5 . | . . . . . High Security . | . . . . . Max Security . | . . . . . Squads Dispatched 3 | . 1 . 2 . Investigation 2 | . 1 . 1 . Extermination . | . . . . . Reinforcement 1 | . . . 1 . Assault . | . . . . . Garrison . | . . . . . Intercept . | . . . . . Searches Triggered . | . . . . . Construction Impeded 1 | . . . 1 . Haulers Reinforced . | . . . . . Active Scanning Responses . | . . . . . Cargo Convoy Interrupts . | . . . . . Stealth | -11 -10 -10 -9 -9 --------- Run | Yrd Mat Min Mat Min Distress Signals . | . . . . . Communications Jammed . | . . . . . Distress Signals . | . . . . . Times Spotted 31 | . 8 3 16 4 Peak Tracking Total 8 | . 4 2 8 4 Tactical Retreats 3 | . . 1 1 1 Traps | -11 -10 -10 -9 -9 ------- Run | Yrd Mat Min Mat Min Traps Triggered . | . . . . . Indirectly . | . . . . . Trap Hack Attempts . | . . . . . Triggered . | . . . . . Disarmed . | . . . . . Reprogrammed . | . . . . . Reused . | . . . . . Traps Extracted . | . . . . . Installed . | . . . . . Triggered . | . . . . . Machines | -11 -10 -10 -9 -9 ---------- Run | Yrd Mat Min Mat Min Machines Disabled 3 | . . 1 2 . Max in Single Turn 1 | . . 1 1 . Machines Repaired . | . . . . . Machines Dismantled . | . . . . . Machines Sabotaged . | . . . . . Overloaded Fab Kills . | . . . . . Hacking | -11 -10 -10 -9 -9 --------- Run | Yrd Mat Min Mat Min Machines Accessed 6 | . 2 . 3 1 Terminals 6 | . 2 . 3 1 Fabricators . | . . . . . Repair Stations . | . . . . . Recycling Units . | . . . . . Scanalyzers . | . . . . . Garrison Access . | . . . . . Total Hacks 15 | . 5 . 9 1 Successful 12 | . 4 . 7 1 Failed 3 | . 1 . 2 . Catastrophic 1 | . . . 1 . Database Lockouts . | . . . . . Manual 3 | . 1 . 2 . Terminals 15 | . 5 . 9 1 Fabricators . | . . . . . Repair Stations . | . . . . . Recycling Units . | . . . . . Scanalyzers . | . . . . . Garrison Access . | . . . . . Terminal Hacks 12 | . 4 . 7 1 Record 5 | . . . 4 1 Prototype ID Bank 2 | . 1 . 1 . Terminal Index 1 | . . . 1 . Alert Level 1 | . . . 1 . Locate Traps 1 | . 1 . . . Dispatch Records 1 | . 1 . . . Zone Layout 1 | . 1 . . . Fabricator Hacks . | . . . . . Repair Station Hacks . | . . . . . Recycling Unit Hacks . | . . . . . Scanalyzer . | . . . . . Garrison Access Hacks . | . . . . . Unauthorized Hacks . | . . . . . Terminals . | . . . . . Fabricators . | . . . . . Repair Stations . | . . . . . Recycling Units . | . . . . . Scanalyzers . | . . . . . Garrison Access . | . . . . . Data Cores Recovered . | . . . . . Used . | . . . . . Hacking Detections 6 | . 2 . 3 1 Full Trace Events 3 | . 2 . 1 . Feedback Events . | . . . . . Feedback Blocked . | . . . . . Robot Schematics Acquired . | . . . . . Robots Built . | . . . . . Authchips . | . . . . . Time . | . . . . . Total Robot Build Rating . | . . . . . Part Schematics Acquired . | . . . . . Parts Built . | . . . . . Authchips . | . . . . . Time . | . . . . . Total Part Build Rating . | . . . . . Parts Repaired . | . . . . . Time . | . . . . . Parts Recycled . | . . . . . Recycled Matter . | . . . . . Retrieved Matter . | . . . . . Retrieved Components . | . . . . . Parts Scanalyzed . | . . . . . Part Schematics Acquired . | . . . . . Parts Damaged . | . . . . . Bothacking | -11 -10 -10 -9 -9 ------------ Run | Yrd Mat Min Mat Min Used RIF Installer . | . . . . . Robots Hacked . | . . . . . Non-combat . | . . . . . Combat . | . . . . . Robot Hacks Applied . | . . . . . Relay Couplers Released . | . . . . . Fabnet Peak Effective % . | . . . . . Robots Rewired . | . . . . . Allies Hacked . | . . . . . Hacks Repelled . | . . . . . Allies | -11 -10 -10 -9 -9 -------- Run | Yrd Mat Min Mat Min Total Allies . | . . . . . Largest Group . | . . . . . Highest-Rated Group . | . . . . . Highest-Rated Ally . | . . . . . Total Orders . | . . . . . Ally Attacks . | . . . . . Total Damage . | . . . . . Kills . | . . . . . Allies Corrupted . | . . . . . Allies Melted . | . . . . . Intel | -11 -10 -10 -9 -9 ------- Run | Yrd Mat Min Mat Min Robot Analysis Total . | . . . . . Derelict Logs Recovered . | . . . . . Drone Launches . | . . . . . Drone Recoveries . | . . . . . Exploration | -11 -10 -10 -9 -9 ------------- Run | Yrd Mat Min Mat Min Turns Passed 1252 | 117 362 289 399 85 Spaces Moved 729 | 79 188 163 203 96 Core 132 | 25 . . 11 96 Treads 597 | 54 188 163 192 . Legs . | . . . . . Wheels . | . . . . . Hover . | . . . . . Flight . | . . . . . Fastest Speed 50 | 50 160 160 100 50 Average Speed 143 | 125 160 160 157 70 Slowest Speed 160 | 160 160 160 160 100 Overloaded Moves . | . . . . . Propulsion Burnouts . | . . . . . Robots Hopped . | . . . . . Cave-ins Triggered . | . . . . . Exploration Rate (%) 24 | 5 26 51 21 17 Regions Visited 4 Branch Regions 2 Pre-discovered Areas . | . . . . . Known Exits Taken . | . . . . . Unknown Exits Taken 4 | 1 1 1 1 . Scrap Searched 1 | . . . . 1 Spaces Dug . | . . . . . Terrain Destroyed 144 | . 23 54 67 . Melee . | . . . . . Projectile 1 | . . . 1 . AOE 143 | . 23 54 66 . Terrain Rammed . | . . . . . Walls Destroyed . | . . . . . Machines Disabled . | . . . . . Actions | -11 -10 -10 -9 -9 --------- Run | Yrd Mat Min Mat Min Total 868 | 96 231 175 252 114 Wait . | . . . . . Move 725 | 78 187 162 202 96 Hop . | . . . . . Pick Up 36 | 7 15 . 9 5 Fast Attach . | . . . . . Attach 16 | 7 1 . 6 2 Detach 2 | 1 . . 1 . Swap 9 | 3 3 1 2 . Drop 18 | . 7 3 7 1 Fire 45 | . 18 9 18 . Melee . | . . . . . Ram 17 | . . . 7 10 Kick . | . . . . . Crush . | . . . . . Escape Stasis . | . . . . . Rewire . | . . . . . Trap . | . . . . . Miscellaneous . | . . . . . Route ------- -11/Scrapyard -10/Materials -10/Mines (discovered 2 exits: *Mat x2) -9/Materials -9/Mines History --------- Turn | Location | Event 9 | -11/Scrapyard | Discovered new exit (range 15) 118 | -11/Scrapyard | Entered Materials 306 | -10/Materials | Build established: Mutant 431 | -10/Materials | Discovered new exit (range 12) 480 | -10/Materials | Entered Mines 673 | -10/Mines | Discovered new exit (range 9) 734 | -10/Mines | Discovered new exit (range 6) 769 | -10/Mines | Entered Materials 769 | -9/Materials | Evolved 2 slots: Power x1, Utility x1 1059 | -9/Materials | Lost 5 parts (2p1n1u1w) 1156 | -9/Materials | Core integrity fell below 50% 1161 | -9/Materials | Discovered new exit (range 7) 1168 | -9/Materials | Entered Mines 1185 | -9/Mines | Lost 3 parts (1n1u1w) 1233 | -9/Mines | Core integrity fell below 20% 1253 | -9/Mines | Destroyed by S-10 Pest with Light Assault Rifle Last Messages --------------- Acquired Mining Laser. K-01 Serf collects debris. Dropped Mining Laser. System corrupted: Energy discharge (-11). R-06 Scavenger collects Mining Laser. K-01 Serf collects debris. System corrupted: Substantial component data lost. K-01 Serf collects debris. K-01 Serf destroyed. K-01 Serf collects debris. Sml. Storage Unit destroyed. R-06 Scavenger collects Salvage Targeting Computer. Slammed into R-06 Scavenger. K-01 Serf collects debris. System corrupted: Component data lost. Slammed into S-10 Pest. K-01 Serf collects debris. Slammed into S-10 Pest. Map ----- +----------------------------------------------------+ | | | | | | | ????????????????????????????????????????? | | ????????????????????????????????????????? | | ???????????????????????????????##???????? | | ?????????????????????????????? #???????? | | ?????????????????????????????? #???????? | | ?????#########???????????????? #???????? | | ?????#T #???????????????? #???????? | | ?????## #???????????????? #???????? | | ??????# #???????????????? #???????? | | ??????# #??????????????? #???????? | | ??????# #??????????????? ????????? | | ??????# #??????????????? #????????? | | ??????### ####??????????????? #????????? | | ????????# #####?????????????? #????????? | | ????????# #????####???### ###??????? | | ????????##### #???## ##### #####??? | | ????????????# ##### !%= #??? | | ????????????# #?? | | ????????????#### ## #?? | | ???????????????# ### ###### #??? | | ???????????????# #?#####????? ####??? | | ???????????????# #??????##### ##?????? | | ???????????????# #??????#@s #??????? | | ??????????????## #??????# #### ##??????? | | ?????????????## ######## #???###???????? | | ?????????????# ## ##s####??????????? | | ?????????????# s #??????????? | | ?????????????## #??????????? | | ??????????????## ### #??????????? | | ???????????????## ##?? #??????????? | | ????????????????# ##????#??????????? | | ???????????????# ##????????????????? | | ?????????????? ##?????????????????? | | ???????????? ##??????????????????? | | ???????????##########???????????????????? | | ????????????????????????????????????????? | | ????????????????????????????????????????? | | ????????????????????????????????????????? | | ????????????????????????????????????????? | | ????????????????????????????????????????? | | ????????????????????????????????????????? | | ????????????????????????????????????????? | | ????????????????????????????????????????? | | ????????????????????????????????????????? | | ????????????????????????????????????????? | | ????????????????????????????????????????? | | ????????????????????????????????????????? | +----------------------------------------------------+ Best States ------------- Heat Dissipation 50 Energy Generation 15 Energy Capacity 400 Matter Stores 300 Matter Capacity 400 Sight Range 18 Robot Scan Range 14 Terrain Scan Density 10 Additional Mass Support 6 Evasion (%) 50 Recoil Reduction 2 Item Schematics ----------------- None Robot Schematics ------------------ None Fabricated ------------ Nothing Alien Tech Used ----------------- None Achievements -------------- Let's See Who's Tougher Loot Pinata Challenges ------------ None Game ------ Seed MiningFluxDeconstructor Manual? 0 Play Time 00:16:41 Cumulative 1.5 hours Start 2024.04.03 @ 17:10:17 End 2024.04.03 @ 17:25:29 Sessions 1 Manual Loads 0 Difficulty Rogue Special Mode None Game No. 3 Rogue 2 Adventurer 1 Explorer 0 Win Type - Total 0 Types 0/0/0/0/0/0/0/0/0 Lore% 1 Gallery% 5 Achievement% 4 Wizard Run 0 Options --------- Layout 1 ASCII 0 Keyboard 0 Movement Arrows Keybinds 0 Fullscreen 1 Font 32/Terminus Map View 50x40 Zoom Use 0% Tactical HUD 0 Map Filters NONE Filters NONE Steam 1 RUN: 18c42cf8-e14d-4791-8905-377bf6808754